[Event "NJSK 2022 Jeugd B"]
[Site "Almelo, Netherlands"]
[Date "2022.05.04"]
[Round "4.7"]
[White "Bakija, Alan"]
[Black "Groen, Jari"]
[Result "1/2-1/2"]
[TimeControl "90min/40moves + 30min + 30sec/move"]
[WhiteElo "1868"]
[BlackElo "1750"]

1. Nf3 {[%clk 01:30:57]} {[%emt 00:00:02]} e6 {[%clk 01:29:17]} {[%emt
00:01:43]} 2. c4 {[%clk 01:31:22]} {[%emt 00:00:06]} d5 {[%clk 01:29:14]}
{[%emt 00:00:34]} 3. e3 {[%clk 01:31:48]} {[%emt 00:00:03]} Nf6 {[%clk
01:28:39]} {[%emt 00:01:05]} 4. b3 {[%clk 01:31:19]} {[%emt 00:00:59]} c5
{[%clk 01:24:24]} {[%emt 00:04:45]} 5. cxd5 {[%clk 01:30:14]} {[%emt 00:01:36]}
exd5 {[%clk 01:24:14]} {[%emt 00:00:40]} 6. d4 {[%clk 01:30:39]} {[%emt
00:00:04]} a6 {[%clk 01:20:50]} {[%emt 00:03:55]} 7. Bb2 {[%clk 01:30:14]}
{[%emt 00:00:55]} Nc6 {[%clk 01:20:34]} {[%emt 00:00:45]} 8. Nc3 {[%clk
01:27:28]} {[%emt 00:03:16]} Be7 {[%clk 01:18:18]} {[%emt 00:02:46]} 9. a3
{[%clk 01:03:29]} {[%emt 00:24:30]} O-O {[%clk 01:13:47]} {[%emt 00:05:00]} 10.
dxc5 {[%clk 01:03:13]} {[%emt 00:00:46]} Bxc5 {[%clk 01:13:07]} {[%emt
00:01:09]} 11. Ne2 {[%clk 01:03:27]} {[%emt 00:00:16]} Bg4 {[%clk 01:01:18]}
{[%emt 00:12:19]} 12. Ned4 {[%clk 01:01:08]} {[%emt 00:02:50]} Ne4 {[%clk
00:51:28]} {[%emt 00:10:19]} 13. Be2 {[%clk 00:59:12]} {[%emt 00:02:27]} Qa5+
{[%clk 00:42:46]} {[%emt 00:09:12]} 14. Kf1 {[%clk 00:41:02]} {[%emt 00:18:39]}
Bd6 {[%clk 00:36:08]} {[%emt 00:07:08]} 15. Nxc6 {[%clk 00:33:06]} {[%emt
00:08:26]} bxc6 {[%clk 00:35:10]} {[%emt 00:01:28]} 16. b4 {[%clk 00:33:30]}
{[%emt 00:00:06]} Qc7 {[%clk 00:30:09]} {[%emt 00:05:31]} 17. Rc1 {[%clk
00:33:11]} {[%emt 00:00:49]} Bd7 {[%clk 00:26:53]} {[%emt 00:03:46]} 18. Qd4
{[%clk 00:23:23]} {[%emt 00:10:19]} f6 {[%clk 00:25:24]} {[%emt 00:01:59]} 19.
h3 {[%clk 00:08:05]} {[%emt 00:15:48]} Qb7 {[%clk 00:15:12]} {[%emt 00:10:42]}
20. g4 {[%clk 00:05:00]} {[%emt 00:03:34]} Rae8 {[%clk 00:12:55]} {[%emt
00:02:47]} 21. Ba1 {[%clk 00:03:53]} {[%emt 00:01:37]} Be5 {[%clk 00:10:27]}
{[%emt 00:02:58]} 22. Qd3 {[%clk 00:03:50]} {[%emt 00:00:34]} Bc8 {[%clk
00:06:40]} {[%emt 00:04:16]} 23. Kg2 {[%clk 00:04:01]} {[%emt 00:00:20]} Qd7
{[%clk 00:06:14]} {[%emt 00:00:56]} 24. Nd2 {[%clk 00:03:46]} {[%emt 00:00:45]}
Bxa1 {[%clk 00:05:26]} {[%emt 00:01:18]} 25. Rxa1 {[%clk 00:04:12]} {[%emt
00:00:04]} f5 {[%clk 00:04:56]} {[%emt 00:01:00]} 26. f3 {[%clk 00:01:50]}
{[%emt 00:02:52]} Nxd2 {[%clk 00:02:40]} {[%emt 00:02:46]} 27. Qxd2 {[%clk
00:02:18]} {[%emt 00:00:02]} Qe7 {[%clk 00:02:41]} {[%emt 00:00:28]} 28. Kf2
{[%clk 00:00:41]} {[%emt 00:02:07]} fxg4 {[%clk 00:01:46]} {[%emt 00:01:25]} 29.
hxg4 {[%clk 00:01:08]} {[%emt 00:00:04]} Bxg4 {[%clk 00:01:56]} {[%emt
00:00:20]} 30. Rag1 {[%clk 00:01:35]} {[%emt 00:00:02]} Qe4 {[%clk 00:00:56]}
{[%emt 00:01:30]} 31. f4 {[%clk 00:00:50]} {[%emt 00:01:15]} Bxe2 {[%clk
00:00:59]} {[%emt 00:00:27]} 32. Kxe2 {[%clk 00:00:44]} {[%emt 00:00:37]} d4
{[%clk 00:00:51]} {[%emt 00:00:38]} 33. Qa2+ {[%clk 00:00:36]} {[%emt
00:00:38]} Rf7 {[%clk 00:00:46]} {[%emt 00:00:34]} 34. Rh3 {[%clk 00:00:36]}
{[%emt 00:00:31]} dxe3 {[%clk 00:00:51]} {[%emt 00:00:25]} 35. Rhg3 {[%clk
00:00:52]} {[%emt 00:00:14]} g6 {[%clk 00:00:55]} {[%emt 00:00:26]} 36. Rf3
{[%clk 00:00:36]} {[%emt 00:00:46]} Kf8 {[%clk 00:00:43]} {[%emt 00:00:42]} 37.
Rgg3 {[%clk 00:00:37]} {[%emt 00:00:29]} Qd5 {[%clk 00:00:40]} {[%emt
00:00:32]} 38. Qb2 {[%clk 00:01:01]} {[%emt 00:00:06]} Qc4+ {[%clk 00:00:39]}
{[%emt 00:00:31]} 39. Ke1 {[%clk 00:01:29]} {[%emt 00:00:03]} Kg8 {[%clk
00:00:37]} {[%emt 00:00:32]} 40. f5 {[%clk 00:01:44]} {[%emt 00:00:14]} Qd5
{[%clk 00:00:39]} {[%emt 00:00:28]} 41. fxg6 {[%clk 00:26:48]} {[%emt
00:05:26]} Qd2+ {[%clk 00:18:56]} {[%emt 00:12:13]} 42. Qxd2 {[%clk 00:27:12]}
{[%emt 00:00:07]} exd2+ {[%clk 00:19:22]} {[%emt 00:00:04]} 43. Kxd2 {[%clk
00:27:25]} {[%emt 00:00:17]} Rxf3 {[%clk 00:17:50]} {[%emt 00:02:01]} 44. gxh7+
{[%clk 00:27:23]} {[%emt 00:00:32]} Kxh7 {[%clk 00:18:11]} {[%emt 00:00:09]} 45.
Rxf3 {[%clk 00:27:46]} {[%emt 00:00:07]} Kg6 {[%clk 00:18:16]} {[%emt
00:00:25]} 46. Kc3 {[%clk 00:27:25]} {[%emt 00:00:51]} Re5 {[%clk 00:13:12]}
{[%emt 00:05:34]} 47. Kb3 {[%clk 00:13:37]} {[%emt 00:14:19]} c5 {[%clk
00:11:05]} {[%emt 00:02:37]} 48. Ka4 {[%clk 00:01:56]} {[%emt 00:12:11]} cxb4
{[%clk 00:10:04]} {[%emt 00:01:30]} 49. Kxb4 {[%clk 00:01:50]} {[%emt
00:00:36]} Rd5 {[%clk 00:07:19]} {[%emt 00:03:14]} 50. Rc3 {[%clk 00:00:52]}
{[%emt 00:01:29]} Kf7 {[%clk 00:06:20]} {[%emt 00:01:28]} 51. Rc6 {[%clk
00:00:46]} {[%emt 00:00:37]} a5+ {[%clk 00:05:49]} {[%emt 00:01:02]} 52. Ka4
{[%clk 00:00:49]} {[%emt 00:00:27]} Ke7 {[%clk 00:05:55]} {[%emt 00:00:23]} 53.
Ra6 {[%clk 00:00:42]} {[%emt 00:00:37]} Kd7 {[%clk 00:06:16]} {[%emt 00:00:09]}
54. Rxa5 {[%clk 00:01:04]} {[%emt 00:00:08]} Rxa5+ {[%clk 00:06:35]} {[%emt
00:00:10]} 55. Kxa5 {[%clk 00:01:27]} {[%emt 00:00:07]} Kc8 {[%clk 00:06:59]}
{[%emt 00:00:06]} 56. Ka6 {[%clk 00:01:45]} {[%emt 00:00:13]} 1/2-1/2

[Event "NJSK 2022 Jeugd B"]
[Site "Almelo, Netherlands"]
[Date "2022.05.04"]
[Round "4.8"]
[White "Alvares, Thomas"]
[Black "Blom, Rens"]
[Result "0-1"]
[TimeControl "90min/40moves + 30min + 30sec/move"]
[WhiteElo "1789"]
[BlackElo "1699"]

1. e4 {[%clk 01:30:57]} {[%emt 00:00:02]} d6 {[%clk 01:30:56]} {[%emt
00:00:04]} 2. d4 {[%clk 01:31:21]} {[%emt 00:00:06]} Nf6 {[%clk 01:31:21]}
{[%emt 00:00:06]} 3. Nc3 {[%clk 01:31:46]} {[%emt 00:00:04]} g6 {[%clk
01:31:46]} {[%emt 00:00:06]} 4. Be3 {[%clk 01:32:10]} {[%emt 00:00:06]} c6
{[%clk 01:32:06]} {[%emt 00:00:10]} 5. a4 {[%clk 01:32:15]} {[%emt 00:00:24]}
Nbd7 {[%clk 01:31:10]} {[%emt 00:01:25]} 6. f4 {[%clk 01:31:38]} {[%emt
00:01:08]} e5 {[%clk 01:28:00]} {[%emt 00:03:41]} 7. Nf3 {[%clk 01:24:47]}
{[%emt 00:07:21]} Bg7 {[%clk 01:22:38]} {[%emt 00:05:51]} 8. h3 {[%clk
01:23:20]} {[%emt 00:01:58]} Qe7 {[%clk 01:11:30]} {[%emt 00:11:38]} 9. Bd3
{[%clk 01:17:12]} {[%emt 00:06:37]} Nh5 {[%clk 00:59:57]} {[%emt 00:12:04]} 10.
fxe5 {[%clk 00:58:34]} {[%emt 00:19:08]} dxe5 {[%clk 00:57:34]} {[%emt
00:02:53]} 11. O-O {[%clk 00:53:24]} {[%emt 00:05:39]} O-O {[%clk 00:52:32]}
{[%emt 00:05:33]} 12. d5 {[%clk 00:51:32]} {[%emt 00:02:22]} Rd8 {[%clk
00:38:48]} {[%emt 00:14:14]} 13. Bc4 {[%clk 00:39:21]} {[%emt 00:12:41]} Nf8
{[%clk 00:27:44]} {[%emt 00:11:34]} 14. Bg5 {[%clk 00:31:29]} {[%emt 00:08:22]}
Qc5+ {[%clk 00:22:54]} {[%emt 00:05:20]} 15. Kh2 {[%clk 00:31:47]} {[%emt
00:00:11]} f6 {[%clk 00:22:35]} {[%emt 00:00:50]} 16. Bb3 {[%clk 00:23:13]}
{[%emt 00:09:04]} fxg5 {[%clk 00:22:43]} {[%emt 00:00:22]} 17. Nxg5 {[%clk
00:22:58]} {[%emt 00:00:44]} Be6 {[%clk 00:16:31]} {[%emt 00:06:42]} 18. Qf3
{[%clk 00:20:37]} {[%emt 00:02:52]} cxd5 {[%clk 00:13:26]} {[%emt 00:03:36]} 19.
Nxe6 {[%clk 00:12:40]} {[%emt 00:08:26]} Nxe6 {[%emt 00:00:26]} 20. Qf7+ {[%clk
00:12:49]} Kh8 {[%clk 00:14:15]} {[%emt 00:00:06]} 21. Qxe6 {[%clk 00:13:03]}
{[%emt 00:00:15]} Nf4 {[%clk 00:11:43]} {[%emt 00:03:03]} 22. Qg4 {[%clk
00:12:38]} {[%emt 00:00:55]} d4 {[%clk 00:11:25]} {[%emt 00:00:49]} 23. Nd5
{[%clk 00:10:18]} {[%emt 00:02:49]} Nxd5 {[%clk 00:10:39]} {[%emt 00:01:16]} 24.
Bxd5 {[%clk 00:10:42]} {[%emt 00:00:06]} Qxc2 {[%clk 00:09:48]} {[%emt
00:01:21]} 25. Rac1 {[%clk 00:10:15]} {[%emt 00:00:57]} Qxa4 {[%clk 00:08:50]}
{[%emt 00:01:29]} 26. Rc7 {[%clk 00:10:01]} {[%emt 00:00:43]} Rf8 {[%clk
00:08:50]} {[%emt 00:00:31]} 27. Rff7 {[%clk 00:05:28]} {[%emt 00:05:03]} Rxf7
{[%clk 00:07:48]} {[%emt 00:01:32]} 28. Bxf7 {[%clk 00:03:51]} {[%emt
00:02:06]} Rf8 {[%clk 00:05:26]} {[%emt 00:02:53]} 29. Bxg6 {[%clk 00:02:32]}
{[%emt 00:01:48]} Qa5 {[%clk 00:02:15]} {[%emt 00:03:42]} 30. Qd7 {[%clk
00:01:16]} {[%emt 00:01:45]} Rg8 {[%clk 00:01:20]} {[%emt 00:01:26]} 31. Bf7
{[%clk 00:01:10]} {[%emt 00:00:35]} Bh6 {[%clk 00:01:16]} {[%emt 00:00:34]} 32.
Bxg8 {[%clk 00:00:32]} {[%emt 00:01:08]} Bf4+ {[%clk 00:01:39]} {[%emt
00:00:08]} 33. g3 {[%clk 00:00:51]} {[%emt 00:00:11]} Qd2+ {[%clk 00:02:01]}
{[%emt 00:00:07]} 34. Kh1 {[%clk 00:01:06]} {[%emt 00:00:15]} Qe1+ {[%clk
00:02:01]} {[%emt 00:00:31]} 35. Kg2 {[%clk 00:01:30]} {[%emt 00:00:07]} Qe2+
{[%clk 00:01:47]} {[%emt 00:00:43]} 36. Kh1 {[%clk 00:01:41]} {[%emt 00:00:19]}
Qf3+ {[%clk 00:01:57]} {[%emt 00:00:20]} 37. Kg1 {[%clk 00:02:02]} {[%emt
00:00:09]} Be3+ {[%clk 00:02:18]} {[%emt 00:00:09]} 0-1

[Event "NJSK 2022 Jeugd B"]
[Site "Almelo, Netherlands"]
[Date "2022.05.04"]
[Round "4.9"]
[White "De Heij, Mees"]
[Black "Knol, Daniel"]
[Result "1-0"]
[TimeControl "90min/40moves + 30min + 30sec/move"]
[WhiteElo "1622"]
[BlackElo "1685"]

1. e4 {[%clk 01:30:57]} {[%emt 00:00:02]} c5 {[%clk 01:30:59]} {[%emt
00:00:03]} 2. Nf3 {[%clk 01:31:21]} {[%emt 00:00:05]} e6 {[%clk 01:31:26]}
{[%emt 00:00:03]} 3. d4 {[%clk 01:31:46]} {[%emt 00:00:05]} cxd4 {[%clk
01:31:54]} {[%emt 00:00:03]} 4. Nxd4 {[%clk 01:32:11]} {[%emt 00:00:05]} Nf6
{[%clk 01:32:20]} {[%emt 00:00:04]} 5. Nc3 {[%clk 01:32:27]} {[%emt 00:00:14]}
Nc6 {[%clk 01:32:46]} {[%emt 00:00:04]} 6. Ndb5 {[%clk 01:32:40]} {[%emt
00:00:17]} d6 {[%clk 01:33:06]} {[%emt 00:00:10]} 7. Bf4 {[%clk 01:33:02]}
{[%emt 00:00:08]} e5 {[%clk 01:33:32]} {[%emt 00:00:03]} 8. Bg5 {[%clk
01:33:28]} {[%emt 00:00:04]} a6 {[%clk 01:33:57]} {[%emt 00:00:06]} 9. Na3
{[%clk 01:33:53]} {[%emt 00:00:04]} b5 {[%clk 01:34:23]} {[%emt 00:00:04]} 10.
Nd5 {[%clk 01:34:20]} {[%emt 00:00:04]} Be7 {[%clk 01:34:49]} {[%emt 00:00:04]}
11. Bxf6 {[%clk 01:34:36]} {[%emt 00:00:14]} Bxf6 {[%clk 01:35:18]} 12. c3
{[%clk 01:34:44]} {[%emt 00:00:22]} Be6 {[%clk 01:31:31]} {[%emt 00:04:17]} 13.
Nc2 {[%clk 01:32:21]} {[%emt 00:02:53]} Bg5 {[%clk 01:31:42]} {[%emt 00:00:17]}
14. Be2 {[%clk 01:30:20]} {[%emt 00:02:32]} O-O {[%clk 01:31:04]} {[%emt
00:01:09]} 15. Nce3 {[%clk 01:21:14]} {[%emt 00:09:36]} Bxe3 {[%clk 01:31:30]}
{[%emt 00:00:04]} 16. Nxe3 {[%clk 01:21:23]} {[%emt 00:00:21]} Rc8 {[%clk
01:29:49]} {[%emt 00:02:10]} 17. O-O {[%clk 01:19:20]} {[%emt 00:02:33]} Ne7
{[%clk 01:28:59]} {[%emt 00:01:20]} 18. a4 {[%clk 01:13:28]} {[%emt 00:06:22]}
Qb6 {[%clk 01:18:52]} {[%emt 00:10:36]} 19. Qd3 {[%clk 00:59:03]} {[%emt
00:14:56]} Bc4 {[%clk 01:15:29]} {[%emt 00:03:54]} 20. Nxc4 {[%clk 00:59:23]}
{[%emt 00:00:10]} bxc4 {[%clk 01:15:56]} {[%emt 00:00:02]} 21. Qc2 {[%clk
00:58:34]} {[%emt 00:01:19]} d5 {[%clk 00:57:41]} {[%emt 00:18:46]} 22. exd5
{[%clk 00:53:57]} {[%emt 00:05:06]} Nxd5 {[%clk 00:57:59]} {[%emt 00:00:11]} 23.
Bf3 {[%clk 00:44:05]} {[%emt 00:10:22]} Nf4 {[%clk 00:52:48]} {[%emt 00:05:41]}
24. Be4 {[%clk 00:43:50]} {[%emt 00:00:46]} g6 {[%clk 00:52:13]} {[%emt
00:01:04]} 25. g3 {[%clk 00:29:27]} {[%emt 00:14:53]} Ne6 {[%clk 00:45:42]}
{[%emt 00:06:59]} 26. Qe2 {[%clk 00:28:44]} {[%emt 00:01:16]} Rfd8 {[%clk
00:29:27]} {[%emt 00:16:45]} 27. Bg2 {[%clk 00:28:11]} {[%emt 00:01:03]} Rd3
{[%clk 00:26:16]} {[%emt 00:03:41]} 28. Rab1 {[%clk 00:18:43]} {[%emt
00:09:58]} Qd6 {[%clk 00:25:46]} {[%emt 00:01:00]} 29. Rfe1 {[%clk 00:18:34]}
{[%emt 00:00:38]} f6 {[%clk 00:23:56]} {[%emt 00:02:21]} 30. Rbd1 {[%clk
00:14:49]} {[%emt 00:04:14]} Nc5 {[%clk 00:24:06]} {[%emt 00:00:21]} 31. Qg4
{[%clk 00:13:34]} {[%emt 00:01:44]} Ne6 {[%clk 00:21:59]} {[%emt 00:02:38]} 32.
Be4 {[%clk 00:12:14]} {[%emt 00:01:50]} Rxd1 {[%clk 00:21:45]} {[%emt
00:00:44]} 33. Rxd1 {[%clk 00:12:32]} {[%emt 00:00:13]} Qe7 {[%clk 00:22:14]}
34. Bd5 {[%clk 00:12:36]} {[%emt 00:00:26]} f5 {[%clk 00:22:28]} {[%emt
00:00:16]} 35. Qe2 {[%clk 00:12:31]} {[%emt 00:00:33]} e4 {[%clk 00:19:53]}
{[%emt 00:03:07]} 36. Bxc4 {[%clk 00:12:09]} {[%emt 00:00:51]} Kg7 {[%clk
00:19:26]} {[%emt 00:00:57]} 37. Bxa6 {[%clk 00:12:15]} {[%emt 00:00:25]} Rf8
{[%clk 00:19:40]} {[%emt 00:00:15]} 38. Bb5 {[%clk 00:12:29]} {[%emt 00:00:17]}
Qf6 {[%clk 00:18:34]} {[%emt 00:01:36]} 39. Rd7+ {[%clk 00:08:18]} {[%emt
00:04:41]} Kh8 {[%clk 00:17:11]} {[%emt 00:01:53]} 40. Bc4 {[%clk 00:02:12]}
{[%emt 00:06:36]} Ng5 {[%clk 00:17:25]} {[%emt 00:00:16]} 41. Qe3 {[%clk
00:00:39]} {[%emt 00:02:02]} f4 {[%clk 00:16:05]} {[%emt 00:01:49]} 42. gxf4
{[%clk 00:30:00]} {[%emt 00:01:09]} Nf3+ {[%clk 00:46:20]} {[%emt 00:00:15]} 43.
Kf1 {[%clk 00:29:47]} {[%emt 00:00:43]} Qf5 {[%clk 00:45:11]} {[%emt 00:01:39]}
44. Rd5 {[%clk 00:29:01]} {[%emt 00:01:16]} Qh3+ {[%clk 00:44:50]} {[%emt
00:00:51]} 45. Ke2 {[%clk 00:29:20]} {[%emt 00:00:11]} Qg4 {[%clk 00:45:16]}
{[%emt 00:00:04]} 46. h3 {[%emt 00:09:15]} Nd4+ {[%clk 00:38:28]} 47. Kd2
{[%clk 00:26:41]} {[%emt 00:01:41]} Nf3+ {[%clk 00:38:53]} {[%emt 00:00:05]} 48.
Kc2 {[%clk 00:26:46]} {[%emt 00:00:26]} Qg2 {[%clk 00:36:44]} {[%emt 00:02:39]}
49. Kb3 {[%clk 00:17:03]} {[%emt 00:10:12]} Rb8+ {[%clk 00:35:58]} {[%emt
00:01:15]} 50. Rb5 {[%clk 00:17:02]} {[%emt 00:00:31]} Rd8 {[%clk 00:36:23]}
{[%emt 00:00:05]} 51. Kb4 {[%clk 00:15:32]} {[%emt 00:02:00]} Rd2 {[%clk
00:36:36]} {[%emt 00:00:16]} 52. b3 {[%clk 00:15:22]} {[%emt 00:00:41]} Qxf2
{[%clk 00:35:34]} {[%emt 00:01:32]} 53. Qxe4 {[%clk 00:14:45]} {[%emt
00:01:07]} Qe1 {[%clk 00:33:55]} {[%emt 00:02:09]} 54. Qa8+ {[%clk 00:13:36]}
{[%emt 00:01:39]} Kg7 {[%clk 00:34:23]} {[%emt 00:00:01]} 55. Rb7+ {[%clk
00:13:54]} {[%emt 00:00:12]} Kh6 {[%clk 00:34:50]} {[%emt 00:00:03]} 56. Qf8+
{[%clk 00:14:16]} {[%emt 00:00:07]} 1-0

[Event "NJSK 2022 Jeugd B"]
[Site "Almelo, Netherlands"]
[Date "2022.05.05"]
[Round "5.1"]
[White "Van der Hagen, Loek"]
[Black "Achuthan, Dylan"]
[Result "1-0"]
[TimeControl "90min/40moves + 30min + 30sec/move"]
[WhiteElo "2071"]
[BlackElo "1995"]

1. d4 {[%clk 01:30:54]} {[%emt 00:00:06]} Nf6 {[%clk 01:29:00]} {[%emt
00:02:00]} 2. c4 {[%clk 01:31:19]} {[%emt 00:00:05]} g6 {[%clk 01:29:27]}
{[%emt 00:00:03]} 3. Nc3 {[%clk 01:31:45]} {[%emt 00:00:04]} d5 {[%clk
01:29:48]} {[%emt 00:00:10]} 4. Bf4 {[%clk 01:31:58]} {[%emt 00:00:17]} Bg7
{[%clk 01:28:45]} {[%emt 00:01:33]} 5. e3 {[%clk 01:32:22]} {[%emt 00:00:06]}
O-O {[%clk 01:25:25]} {[%emt 00:03:50]} 6. cxd5 {[%clk 01:32:44]} {[%emt
00:00:09]} Nxd5 {[%clk 01:25:48]} {[%emt 00:00:06]} 7. Nxd5 {[%clk 01:33:08]}
{[%emt 00:00:06]} Qxd5 {[%clk 01:26:14]} {[%emt 00:00:03]} 8. Bxc7 {[%clk
01:33:22]} {[%emt 00:00:17]} Nc6 {[%clk 01:26:40]} {[%emt 00:00:04]} 9. Ne2
{[%clk 01:33:03]} {[%emt 00:00:49]} Bg4 {[%clk 01:09:59]} {[%emt 00:17:11]} 10.
f3 {[%clk 01:32:59]} {[%emt 00:00:34]} Bxf3 {[%clk 00:54:48]} {[%emt 00:15:41]}
11. gxf3 {[%clk 01:32:06]} {[%emt 00:01:23]} Qxf3 {[%clk 00:54:53]} {[%emt
00:00:24]} 12. Rg1 {[%clk 01:30:51]} {[%emt 00:01:45]} Qxe3 {[%clk 00:54:06]}
{[%emt 00:01:18]} 13. Rg3 {[%clk 01:30:02]} {[%emt 00:01:19]} Qe4 {[%clk
00:51:31]} {[%emt 00:03:06]} 14. Qd3 {[%clk 01:10:47]} {[%emt 00:19:44]} Qxd3
{[%clk 00:50:31]} {[%emt 00:01:30]} 15. Rxd3 {[%clk 01:11:11]} {[%emt
00:00:06]} Rac8 {[%clk 00:50:51]} {[%emt 00:00:10]} 16. Bf4 {[%clk 01:04:21]}
{[%emt 00:07:19]} Nb4 {[%clk 00:50:07]} {[%emt 00:01:13]} 17. Rad1 {[%clk
01:04:33]} {[%emt 00:00:19]} Nxd3+ {[%clk 00:49:36]} {[%emt 00:01:01]} 18. Rxd3
{[%clk 01:05:02]} {[%emt 00:00:02]} Rfd8 {[%clk 00:43:55]} {[%emt 00:06:11]} 19.
Rc3 {[%clk 00:59:43]} {[%emt 00:05:50]} h6 {[%clk 00:36:40]} {[%emt 00:07:44]}
20. Bg2 {[%clk 00:55:51]} {[%emt 00:04:22]} b6 {[%clk 00:25:09]} {[%emt
00:12:01]} 21. a4 {[%clk 00:38:47]} {[%emt 00:17:34]} g5 {[%clk 00:20:05]}
{[%emt 00:05:34]} 22. Be3 {[%clk 00:36:07]} {[%emt 00:03:10]} e6 {[%clk
00:14:58]} {[%emt 00:05:37]} 23. Bb7 {[%clk 00:35:09]} {[%emt 00:01:29]} Rb8
{[%clk 00:10:56]} {[%emt 00:04:32]} 24. Rc7 {[%clk 00:35:03]} {[%emt 00:00:36]}
Bf8 {[%clk 00:09:22]} {[%emt 00:02:04]} 25. Bf3 {[%clk 00:24:51]} {[%emt
00:10:41]} a5 {[%clk 00:07:26]} {[%emt 00:02:27]} 26. Bh5 {[%clk 00:23:18]}
{[%emt 00:02:02]} Bb4+ {[%clk 00:05:40]} {[%emt 00:02:16]} 27. Kf2 {[%clk
00:15:37]} {[%emt 00:08:12]} Bd6 {[%clk 00:02:16]} {[%emt 00:03:53]} 28. Rxf7
{[%clk 00:15:08]} {[%emt 00:00:59]} b5 {[%clk 00:01:17]} {[%emt 00:01:30]} 29.
Nc3 {[%clk 00:07:12]} {[%emt 00:08:25]} Rf8 {[%clk 00:01:39]} {[%emt 00:00:08]}
30. Rxf8+ {[%clk 00:07:20]} {[%emt 00:00:22]} Rxf8+ {[%clk 00:02:02]} {[%emt
00:00:08]} 31. Kg2 {[%clk 00:06:34]} {[%emt 00:01:15]} bxa4 {[%clk 00:01:53]}
{[%emt 00:00:39]} 32. Nxa4 {[%clk 00:05:51]} {[%emt 00:01:13]} Bf4 {[%clk
00:01:54]} {[%emt 00:00:29]} 33. Bf2 {[%clk 00:05:23]} {[%emt 00:00:58]} Bxh2
{[%clk 00:01:00]} {[%emt 00:01:25]} 34. Nc5 {[%clk 00:05:50]} {[%emt 00:00:03]}
Bd6 {[%clk 00:00:59]} {[%emt 00:00:30]} 35. Bg4 {[%clk 00:04:15]} {[%emt
00:02:06]} e5 {[%clk 00:00:36]} {[%emt 00:00:52]} 36. Bg3 {[%clk 00:04:29]}
{[%emt 00:00:16]} Rb8 {[%clk 00:00:36]} {[%emt 00:00:31]} 37. b3 {[%clk
00:04:32]} {[%emt 00:00:27]} Re8 {[%clk 00:00:32]} {[%emt 00:00:35]} 38. Ne4
{[%clk 00:03:58]} {[%emt 00:01:03]} Be7 {[%clk 00:00:35]} {[%emt 00:00:26]} 39.
dxe5 {[%clk 00:03:56]} {[%emt 00:00:32]} Rb8 {[%clk 00:00:45]} {[%emt
00:00:21]} 40. Be6+ {[%clk 00:01:26]} {[%emt 00:02:59]} Kf8 {[%clk 00:01:14]}
41. Nd6 {[%clk 00:28:28]} {[%emt 00:03:30]} h5 {[%clk 00:18:42]} {[%emt
00:13:01]} 42. Be1 {[%clk 00:27:21]} {[%emt 00:01:37]} Bd8 {[%clk 00:17:41]}
{[%emt 00:01:32]} 43. Bc4 {[%clk 00:23:22]} {[%emt 00:04:29]} Ra8 {[%clk
00:15:38]} {[%emt 00:02:33]} 44. Bd5 {[%clk 00:12:24]} {[%emt 00:11:28]} Ra7
{[%clk 00:03:27]} {[%emt 00:12:41]} 45. Bf2 {[%clk 00:10:02]} {[%emt 00:02:52]}
Rd7 {[%clk 00:02:09]} {[%emt 00:01:48]} 46. Bc4 {[%clk 00:05:26]} {[%emt
00:05:06]} Be7 {[%clk 00:02:12]} {[%emt 00:00:27]} 47. Nf5 {[%clk 00:05:08]}
{[%emt 00:00:48]} Bb4 {[%clk 00:00:46]} {[%emt 00:01:56]} 48. Be3 {[%clk
00:05:01]} {[%emt 00:00:37]} Rc7 {[%clk 00:00:42]} {[%emt 00:00:34]} 49. Bxg5
{[%clk 00:04:23]} {[%emt 00:01:08]} a4 {[%clk 00:00:33]} {[%emt 00:00:42]} 50.
Bh6+ {[%clk 00:04:23]} {[%emt 00:00:30]} Ke8 {[%clk 00:00:55]} {[%emt
00:00:08]} 51. Bb5+ {[%clk 00:00:49]} {[%emt 00:04:04]} Kf7 {[%clk 00:01:13]}
{[%emt 00:00:12]} 52. bxa4 {[%clk 00:00:57]} {[%emt 00:00:22]} Ke6 {[%clk
00:00:36]} {[%emt 00:01:07]} 53. Nd4+ {[%clk 00:01:15]} {[%emt 00:00:12]} Kxe5
{[%clk 00:00:33]} {[%emt 00:00:34]} 54. Nc6+ {[%clk 00:01:24]} {[%emt
00:00:20]} Rxc6 {[%clk 00:00:33]} {[%emt 00:00:30]} 55. Bxc6 {[%clk 00:01:50]}
{[%emt 00:00:04]} Kf6 {[%clk 00:00:33]} {[%emt 00:00:30]} 56. Kh3 {[%clk
00:02:13]} {[%emt 00:00:07]} Ke6 {[%clk 00:00:48]} {[%emt 00:00:15]} 57. Kh4
{[%clk 00:02:37]} {[%emt 00:00:06]} Kd6 {[%clk 00:01:12]} {[%emt 00:00:06]} 58.
Bb5 {[%clk 00:03:03]} {[%emt 00:00:04]} Kc7 {[%clk 00:01:25]} {[%emt 00:00:16]}
59. Kxh5 {[%clk 00:03:26]} {[%emt 00:00:08]} Kb6 {[%clk 00:01:51]} {[%emt
00:00:05]} 60. Kg4 {[%clk 00:03:45]} {[%emt 00:00:11]} Ka5 {[%clk 00:02:10]}
{[%emt 00:00:11]} 61. Kf5 {[%clk 00:04:08]} {[%emt 00:00:06]} Kb6 {[%clk
00:02:33]} {[%emt 00:00:07]} 62. Ke4 {[%clk 00:04:33]} {[%emt 00:00:05]} Ka5
{[%clk 00:02:58]} {[%emt 00:00:05]} 63. Kd5 {[%clk 00:04:50]} {[%emt 00:00:12]}
Kb6 {[%clk 00:03:23]} {[%emt 00:00:05]} 64. Bf4 {[%clk 00:05:00]} {[%emt
00:00:20]} Ba5 {[%clk 00:03:37]} {[%emt 00:00:17]} 65. Be3+ {[%clk 00:05:14]}
{[%emt 00:00:15]} Kb7 {[%clk 00:03:50]} {[%emt 00:00:18]} 66. Kc4 {[%clk
00:05:16]} {[%emt 00:00:28]} Kc7 {[%clk 00:03:53]} {[%emt 00:00:27]} 67. Be8
{[%clk 00:05:36]} {[%emt 00:00:09]} Kb7 {[%clk 00:04:09]} {[%emt 00:00:15]} 68.
Kb5 {[%clk 00:06:01]} {[%emt 00:00:05]} Bc7 {[%clk 00:04:34]} {[%emt 00:00:04]}
69. Bc6+ {[%clk 00:06:19]} {[%emt 00:00:13]} Kb8 {[%clk 00:05:00]} {[%emt
00:00:04]} 70. Bb6 {[%clk 00:06:42]} {[%emt 00:00:06]} 1-0